[Event "Groningen Festival 2018"]
[Site "Groningen"]
[Date "2018.12.26"]
[Round "5"]
[White "Vrolijk, Liam"]
[Black "Ernst, Sipke"]
[Result "1/2-1/2"]
[ECO "C03"]
[WhiteElo "2440"]
[BlackElo "2539"]
[Annotator "ChessBase"]
[PlyCount "30"]
[EventDate "2018.12.22"]
[EventType "swiss"]
[EventCountry "NED"]
[SourceTitle "playchess.com"]
[Source "ChessBase"]
[SourceQuality "1"]
[TimeControl "40/5400+30:1800+30"]

1. e4 {[%emt 0:00:00]} e6 {[%emt 0:00:10]} 2. d4 {[%emt 0:00:02]} d5 {[%emt 0:00:05]} 3. Nd2 {[%emt 0:01:55]} Be7 {[%emt 0:01:12]} 4. Bd3 {[%emt 0:02:25]} c5 {[%emt 0:00:12]} 5. dxc5 {[%emt 0:02:54]} Nf6 {[%emt 0:00:04]} 6. Qe2 {[%emt 0:02:35]} O-O {[%emt 0:12:45]} 7. Ngf3 {[%emt 0:00:40]} Nc6 {[%emt 0:02:07]} 8. O-O {[%emt 0:08:36]} a5 {[%emt 0:00:54]} 9. a4 {[%emt 0:11:58]} Nb4 {[%emt 0:06:36]} 10. Nb3 {[%emt 0:10:48]} b6 {[%emt 0:00:41]} 11. e5 {[%emt 0:05:11]} Nd7 {[%emt 0:02:43]} 12. c6 {[%emt 0:10:16]} Nxc6 {[%emt 0:07:45]} 13. Bb5 {[%emt 0:01:14]} Na7 {[%emt 0:02:47]} 14. Nbd4 {[%emt 0:02:24]} Nc5 {[%emt 0:00:47]} 15. Nc6 {[%emt 0:03:06]} Nxc6 {[%emt 0:04:13]} 1/2-1/2

[Event "Groningen Festival 2018"]
[Site "Groningen"]
[Date "2018.12.26"]
[Round "5"]
[White "Warmerdam, Max"]
[Black "Maatman, Nick"]
[Result "1/2-1/2"]
[ECO "C18"]
[WhiteElo "2433"]
[BlackElo "2363"]
[Annotator "NA"]
[PlyCount "54"]
[EventDate "2018.12.22"]
[EventType "swiss"]
[EventCountry "NED"]
[SourceTitle "playchess.com"]
[Source "ChessBase"]
[SourceQuality "1"]
[TimeControl "40/5400+30:1800+30"]

1. e4 {[%emt 0:00:00]} e6 {[%emt 0:00:00]} 2. d4 {[%emt 0:00:00]} d5 {[%emt 0:00:00]} 3. Nc3 {[%emt 0:00:00]} Bb4 {[%emt 0:00:00]} 4. e5 {[%emt 0:00:00]} Ne7 {[%emt 0:00:00]} 5. a3 {[%emt 0:00:00]} Bxc3+ {[%emt 0:00:00]} 6. bxc3 {[%emt 0:00:00]} c5 {[%emt 0:00:00]} 7. Qg4 {[%emt 0:00:05]} O-O {[%emt 0:00:34]} 8. Bd3 {[%emt 0:00:40]} f5 {[%emt 0:00:41]} 9. exf6 {[%emt 0:00:29]} Rxf6 {[%emt 0:00:25]} 10. Bg5 {[%emt 0:12:49]} Rf7 {[%emt 0:00:25]} 11. Nf3 {[%emt 0:01:09]} Nbc6 {[%emt 0:10:33]} 12. Bxe7 {[%emt 0:15:21]} Rxe7 {[%emt 0:04:29]} 13. Qh4 {[%emt 0:00:32]} h6 {[%emt 0:09:16]} 14. O-O {[%emt 0:00:39]} c4 {[%emt 0:03:19]} 15. Be2 {[%emt 0:07:53]} Bd7 {[%emt 0:01:39]} 16. Rfe1 {[%emt 0:00:57]} Rf7 {[%emt 0:21:39]} 17. Qxd8+ {[%emt 0:10:04]} Rxd8 {[%emt 0:00:23]} 18. Bf1 {[%emt 0:00:15]} Rdf8 {[%emt 0:01:30]} 19. Rab1 {[%emt 0:04:51]} b6 {[%emt 0:00:34]} 20. Re2 {[%emt 0:00:54]} g5 {[%emt 0:06:25]} 21. Ne1 {[%emt 0:02:57]} Rf6 {[%emt 0:02:48]} 22. g3 {[%emt 0:00:40]} Be8 {[%emt 0:03:15]} 23. f3 {[%emt 0:32:51]} Bg6 {[%emt 0:07:46]} 24. Re3 {[%emt 0:02:05]} Ne7 {[%emt 0:04:11]} 25. Re5 {[%emt 0:04:11]} Nc6 {[%emt 0:01:14]} 26. Re3 {[%emt 0:00:01]} Ne7 {[%emt 0:00:05]} 27. Re5 {[%emt 0:00:06]} Nc6 {[%emt 0:00:05]} 1/2-1/2

[Event "Groningen Festival 2018"]
[Site "Groningen"]
[Date "2018.12.26"]
[Round "5"]
[White "Lahaye, Rick"]
[Black "Kokje, Joris"]
[Result "1-0"]
[ECO "B20"]
[WhiteElo "2404"]
[BlackElo "2244"]
[Annotator "NA"]
[PlyCount "121"]
[EventDate "2018.12.22"]
[EventType "swiss"]
[EventCountry "NED"]
[SourceTitle "playchess.com"]
[Source "ChessBase"]
[SourceQuality "1"]
[TimeControl "40/5400+30:1800+30"]

1. e4 {[%emt 0:00:00]} c5 {[%emt 0:00:00]} 2. Ne2 {[%emt 0:00:00]} d6 {[%emt 0:01:03]} 3. g3 {[%emt 0:00:18]} g6 {[%emt 0:05:08]} 4. Bg2 {[%emt 0:00:48]} Bg7 {[%emt 0:00:07]} 5. O-O {[%emt 0:00:50]} Nc6 {[%emt 0:00:52]} 6. c3 {[%emt 0:00:24]} a6 {[%emt 0:09:06]} 7. d4 {[%emt 0:08:36]} cxd4 {[%emt 0:00:22]} 8. cxd4 {[%emt 0:00:54]} Nf6 {[%emt 0:05:46]} 9. Nbc3 {[%emt 0:05:17]} O-O {[%emt 0:02:03]} 10. h3 {[%emt 0:08:25]} Bd7 {[%emt 0:04:49]} 11. Be3 {[%emt 0:04:23]} b5 {[%emt 0:04:29]} 12. Rc1 {[%emt 0:06:29]} Rc8 {[%emt 0:05:40]} 13. b3 {[%emt 0:03:23]} b4 {[%emt 0:09:04]} 14. Na4 {[%emt 0:00:17]} Na7 {[%emt 0:05:02]} 15. e5 {[%emt 0:09:25]} Ne8 {[%emt 0:01:41]} 16. d5 {[%emt 0:02:43]} Rxc1 {[%emt 0:02:59]} 17. Qxc1 {[%emt 0:01:52]} Nb5 {[%emt 0:00:25]} 18. e6 {[%emt 0:02:12]} fxe6 {[%emt 0:02:17]} 19. dxe6 {[%emt 0:00:33]} Bxe6 {[%emt 0:00:14]} 20. Nf4 {[%emt 0:00:08]} Bf7 {[%emt 0:01:57]} 21. Nd5 {[%emt 0:09:09]} Nc3 {[%emt 0:06:46]} 22. Naxc3 {[%emt 0:09:34]} bxc3 {[%emt 0:00:06]} 23. Bh6 {[%emt 0:00:23]} Bxh6 {[%emt 0:03:54]} 24. Qxh6 {[%emt 0:00:16]} Nf6 {[%emt 0:02:58]} 25. Nxc3 {[%emt 0:03:53]} d5 {[%emt 0:08:02]} 26. Rd1 {[%emt 0:02:50]} Qd6 {[%emt 0:00:25]} 27. Qd2 {[%emt 0:01:53]} Rd8 {[%emt 0:00:22]} 28. f4 {[%emt 0:02:13]} e5 {[%emt 0:05:16]} 29. fxe5 {[%emt 0:01:43]} Qxe5 {[%emt 0:00:04]} 30. Qd4 {[%emt 0:00:09]} Qxd4+ {[%emt 0:02:53]} 31. Rxd4 {[%emt 0:00:05]} Rc8 {[%emt 0:00:37]} 32. Rd3 {[%emt 0:11:11]} d4 {[%emt 0:00:57]} 33. Nd1 {[%emt 0:00:23]} Rc2 {[%emt 0:01:18]} 34. a3 {[%emt 0:00:37]} Rc1 {[%emt 0:01:21]} 35. b4 {[%emt 0:02:20]} Nd5 {[%emt 0:01:31]} 36. Bxd5 {[%emt 0:03:07]} Bxd5 {[%emt 0:00:04]} 37. Kf2 {[%emt 0:00:06]} Rc2+ {[%emt 0:02:34]} 38. Ke1 {[%emt 0:00:08]} Bc4 {[%emt 0:01:05]} 39. Rd2 {[%emt 0:00:40]} Rc1 {[%emt 0:04:13]} 40. Rxd4 {[%emt 0:01:17]} Bb3 {[%emt 0:00:22]} 41. Ke2 {[%emt 0:18:23]} Ra1 {[%emt 0:04:11]} 42. Nb2 {[%emt 0:00:42]} Be6 {[%emt 0:01:31]} 43. a4 {[%emt 0:01:07]} Ra2 {[%emt 0:01:29]} 44. Rd2 {[%emt 0:00:06]} Bxh3 {[%emt 0:00:05]} 45. b5 {[%emt 0:04:34]} axb5 {[%emt 0:01:13]} 46. axb5 {[%emt 0:00:05]} Ra5 {[%emt 0:00:44]} 47. b6 {[%emt 0:00:05]} Rb5 {[%emt 0:01:22]} 48. Na4 {[%emt 0:00:32]} Bg2 {[%emt 0:05:43]} 49. Ke3 {[%emt 0:05:13]} Bc6 {[%emt 0:02:59]} 50. Rb2 {[%emt 0:00:55]} Rxb2 {[%emt 0:00:43]} 51. Nxb2 {[%emt 0:00:09]} Kf7 {[%emt 0:00:17]} 52. Nc4 {[%emt 0:00:22]} Kf6 {[%emt 0:04:04]} 53. Na5 {[%emt 0:03:25]} Bh1 {[%emt 0:00:13]} 54. b7 {[%emt 0:01:15]} Bxb7 {[%emt 0:00:05]} 55. Nxb7 {[%emt 0:00:02]} h5 {[%emt 0:05:54]} 56. Kf4 {[%emt 0:01:03]} g5+ {[%emt 0:00:24]} 57. Ke4 {[%emt 0:00:06]} Ke6 {[%emt 0:02:11]} 58. Nc5+ {[%emt 0:00:23]} Kf6 {[%emt 0:00:08]} 59. Nd3 {[%emt 0:00:20]} Ke6 {[%emt 0:00:11]} 60. Ne1 {[%emt 0:00:14]} h4 {[%emt 0:02:41]} 61. g4 {[%emt 0:00:15]} 1-0

[Event "Groningen Festival 2018"]
[Site "Groningen"]
[Date "2018.12.26"]
[Round "5"]
[White "Kollen, Zyon"]
[Black "Schippers, Maurice"]
[Result "1/2-1/2"]
[ECO "B45"]
[WhiteElo "2363"]
[BlackElo "2270"]
[Annotator "NA"]
[PlyCount "110"]
[EventDate "2018.12.22"]
[EventType "swiss"]
[EventCountry "NED"]
[SourceTitle "playchess.com"]
[Source "ChessBase"]
[SourceQuality "1"]
[TimeControl "40/5400+30:1800+30"]

1. e4 {[%emt 0:00:00]} c5 {[%emt 0:00:00]} 2. Nf3 {[%emt 0:00:00]} e6 {[%emt 0:00:10]} 3. d4 {[%emt 0:00:12]} cxd4 {[%emt 0:00:04]} 4. Nxd4 {[%emt 0:00:04]} Nf6 {[%emt 0:00:15]} 5. Nc3 {[%emt 0:00:12]} Nc6 {[%emt 0:00:17]} 6. Ndb5 {[%emt 0:00:23]} Bc5 {[%emt 0:00:39]} 7. Bf4 {[%emt 0:07:26]} O-O {[%emt 0:00:16]} 8. Bc7 {[%emt 0:12:07]} Qe7 {[%emt 0:00:16]} 9. Bd6 {[%emt 0:00:44]} Bxd6 {[%emt 0:00:08]} 10. Nxd6 {[%emt 0:00:57]} Rd8 {[%emt 0:04:35]} 11. Qd2 {[%emt 0:04:06]} a6 {[%emt 0:08:55]} 12. f4 {[%emt 0:08:07]} Ne8 {[%emt 0:16:54]} 13. Nxe8 {[%emt 0:11:38]} d5 {[%emt 0:07:58]} 14. Nxg7 {[%emt 0:10:52]} dxe4 {[%emt 0:02:18]} 15. Qe3 {[%emt 0:02:00]} Kxg7 {[%emt 0:05:19]} 16. Nxe4 {[%emt 0:09:18]} Qb4+ {[%emt 0:13:36]} 17. Qc3+ {[%emt 0:00:24]} Rd4 {[%emt 0:00:39]} 18. Bd3 {[%emt 0:10:22]} e5 {[%emt 0:05:51]} 19. Ng3 {[%emt 0:02:08]} Bg4 {[%emt 0:14:31]} 20. h3 {[%emt 0:06:50]} exf4 {[%emt 0:02:04]} 21. hxg4 {[%emt 0:06:07]} fxg3 {[%emt 0:00:10]} 22. O-O-O {[%emt 0:00:29]} h6 {[%emt 0:05:53]} 23. Bf5 {[%emt 0:05:10]} Qxc3 {[%emt 0:02:29]} 24. bxc3 {[%emt 0:00:01]} Rxd1+ {[%emt 0:00:21]} 25. Rxd1 {[%emt 0:00:08]} Ne5 {[%emt 0:03:14]} 26. Re1 {[%emt 0:02:26]} Kf6 {[%emt 0:00:26]} 27. Be4 {[%emt 0:00:43]} Rb8 {[%emt 0:01:36]} 28. Re3 {[%emt 0:00:11]} Kg5 {[%emt 0:01:51]} 29. Bd5 {[%emt 0:00:26]} Nxg4 {[%emt 0:01:03]} 30. Rxg3 {[%emt 0:00:05]} f5 {[%emt 0:00:17]} 31. Rd3 {[%emt 0:01:13]} b5 {[%emt 0:00:38]} 32. c4 {[%emt 0:00:18]} bxc4 {[%emt 0:00:53]} 33. Bxc4 {[%emt 0:00:03]} Ne5 {[%emt 0:00:57]} 34. Bxa6 {[%emt 0:01:16]} Nxd3+ {[%emt 0:00:11]} 35. Bxd3 {[%emt 0:00:01]} Kf4 {[%emt 0:00:45]} 36. a4 {[%emt 0:00:47]} Rg8 {[%emt 0:00:38]} 37. Bf1 {[%emt 0:00:21]} Ke3 {[%emt 0:00:20]} 38. a5 {[%emt 0:00:05]} Kf2 {[%emt 0:00:40]} 39. Bd3 {[%emt 0:00:12]} Ra8 {[%emt 0:01:33]} 40. Bxf5 {[%emt 0:00:20]} Rxa5 {[%emt 0:00:04]} 41. Be4 {[%emt 0:30:34]} h5 {[%emt 0:30:43]} 42. Kd2 {[%emt 0:00:00]} h4 {[%emt 0:00:00]} 43. c4 {[%emt 0:00:00]} Rg5 {[%emt 0:00:00]} 44. Kd3 {[%emt 0:00:00]} Kg3 {[%emt 0:00:00]} 45. Kd4 {[%emt 0:00:00]} Kf4 {[%emt 0:00:00]} 46. Bd5 {[%emt 0:00:00]} Kf5 {[%emt 0:00:00]} 47. Bf3 {[%emt 0:00:00]} Rg3 {[%emt 0:00:00]} 48. Be4+ {[%emt 0:00:00]} Ke6 {[%emt 0:00:00]} 49. c5 {[%emt 0:00:00]} Kd7 {[%emt 0:00:00]} 50. Bf5+ {[%emt 0:00:00]} Kc6 {[%emt 0:00:00]} 51. Be4+ {[%emt 0:00:00]} Kc7 {[%emt 0:00:00]} 52. Ke5 {[%emt 0:00:00]} Rg5+ {[%emt 0:00:00]} 53. Kd4 {[%emt 0:00:00]} Rg3 {[%emt 0:00:00]} 54. Ke5 {[%emt 0:00:00]} Rg5+ {[%emt 0:00:00]} 55. Kd4 {[%emt 0:00:00]} Rg3 {[%emt 0:00:00]} 1/2-1/2

[Event "Groningen Festival 2018"]
[Site "Groningen"]
[Date "2018.12.26"]
[Round "5"]
[White "Ashwath, R.."]
[Black "Van Meegen, Ruud"]
[Result "1/2-1/2"]
[ECO "E21"]
[WhiteElo "2314"]
[BlackElo "2230"]
[Annotator "NA"]
[PlyCount "21"]
[EventDate "2018.12.22"]
[EventType "swiss"]
[EventCountry "NED"]
[SourceTitle "playchess.com"]
[Source "ChessBase"]
[SourceQuality "1"]
[TimeControl "40/5400+30:1800+30"]

1. d4 {[%emt 0:00:12]} Nf6 {[%emt 0:00:00]} 2. c4 {[%emt 0:00:00]} e6 {[%emt 0:00:00]} 3. Nc3 {[%emt 0:00:00]} Bb4 {[%emt 0:00:00]} 4. Nf3 {[%emt 0:00:00]} O-O {[%emt 0:00:15]} 5. Bg5 {[%emt 0:03:40]} c5 {[%emt 0:01:13]} 6. Rc1 {[%emt 0:03:35]} h6 {[%emt 0:02:06]} 7. Bh4 {[%emt 0:04:50]} cxd4 {[%emt 0:00:34]} 8. Nxd4 {[%emt 0:00:38]} d5 {[%emt 0:00:31]} 9. Bxf6 {[%emt 0:21:46]} Qxf6 {[%emt 0:00:22]} 10. cxd5 {[%emt 0:00:45]} exd5 {[%emt 0:00:19]} 11. e3 {[%emt 0:02:47]} 1/2-1/2

[Event "Groningen Festival 2018"]
[Site "Groningen"]
[Date "2018.12.26"]
[Round "5"]
[White "Hovsepyan, Vardan"]
[Black "Zwirs, Nico"]
[Result "1-0"]
[ECO "B86"]
[WhiteElo "2264"]
[BlackElo "2414"]
[Annotator "NA"]
[PlyCount "81"]
[EventDate "2018.12.22"]
[EventType "swiss"]
[EventCountry "NED"]
[SourceTitle "playchess.com"]
[Source "ChessBase"]
[SourceQuality "1"]
[TimeControl "40/5400+30:1800+30"]

1. e4 {[%emt 0:00:00]} c5 {[%emt 0:00:00]} 2. Nf3 {[%emt 0:00:02]} d6 {[%emt 0:00:00]} 3. d4 {[%emt 0:00:16]} cxd4 {[%emt 0:00:00]} 4. Nxd4 {[%emt 0:00:06]} Nf6 {[%emt 0:00:00]} 5. Nc3 {[%emt 0:00:12]} a6 {[%emt 0:00:00]} 6. Bc4 {[%emt 0:00:24]} e6 {[%emt 0:00:00]} 7. Bb3 {[%emt 0:00:08]} Nbd7 {[%emt 0:00:03]} 8. O-O {[%emt 0:00:11]} Nc5 {[%emt 0:00:29]} 9. Re1 {[%emt 0:00:46]} Be7 {[%emt 0:03:09]} 10. Qf3 {[%emt 0:06:14]} O-O {[%emt 0:00:31]} 11. Bg5 {[%emt 0:05:35]} Qc7 {[%emt 0:03:29]} 12. Qg3 {[%emt 0:08:47]} Kh8 {[%emt 0:01:02]} 13. a4 {[%emt 0:07:33]} h6 {[%emt 0:01:54]} 14. Qh3 {[%emt 0:04:15]} Nxb3 {[%emt 0:11:29]} 15. Nxb3 {[%emt 0:05:06]} e5 {[%emt 0:00:26]} 16. Qh4 {[%emt 0:00:57]} Be6 {[%emt 0:00:10]} 17. Rad1 {[%emt 0:04:27]} b5 {[%emt 0:09:26]} 18. axb5 {[%emt 0:03:43]} axb5 {[%emt 0:00:14]} 19. Nxb5 {[%emt 0:03:52]} Qxc2 {[%emt 0:02:10]} 20. Na1 {[%emt 0:02:03]} Qc6 {[%emt 0:06:01]} 21. Nxd6 {[%emt 0:01:45]} Kg8 {[%emt 0:10:04]} 22. Bxh6 {[%emt 0:05:03]} gxh6 {[%emt 0:10:12]} 23. Qxh6 {[%emt 0:01:12]} Rxa1 {[%emt 0:14:30]} 24. Qg5+ {[%emt 0:03:38]} Kh8 {[%emt 0:00:23]} 25. Qh6+ {[%emt 0:00:49]} Nh7 {[%emt 0:01:41]} 26. Nf5 {[%emt 0:00:17]} Rg8 {[%emt 0:08:02]} 27. Rxa1 {[%emt 0:00:09]} Bb4 {[%emt 0:04:18]} 28. Re3 {[%emt 0:05:45]} Rg6 {[%emt 0:08:44]} 29. Qh5 {[%emt 0:04:35]} Rg5 {[%emt 0:00:24]} 30. Qh3 {[%emt 0:01:48]} Bc5 {[%emt 0:04:29]} 31. Rg3 {[%emt 0:01:13]} Bxf2+ {[%emt 0:00:55]} 32. Kxf2 {[%emt 0:01:50]} Qb6+ {[%emt 0:00:00]} 33. Kf1 {[%emt 0:00:35]} Rxf5+ {[%emt 0:01:21]} 34. exf5 {[%emt 0:00:42]} Bc4+ {[%emt 0:00:00]} 35. Rd3 {[%emt 0:01:17]} Qd8 {[%emt 0:00:01]} 36. Kg1 {[%emt 0:07:13]} Bxd3 {[%emt 0:00:03]} 37. Qe3 {[%emt 0:01:21]} Qd5 {[%emt 0:01:25]} 38. Re1 {[%emt 0:04:26]} e4 {[%emt 0:00:40]} 39. g4 {[%emt 0:00:46]} Qe5 {[%emt 0:00:41]} 40. Qxd3 {[%emt 0:01:14]} Ng5 {[%emt 0:00:02]} 41. Qd8+ {[%emt 0:30:22]} 1-0

[Event "Groningen Festival 2018"]
[Site "Groningen"]
[Date "2018.12.26"]
[Round "5"]
[White "Baum, Bernd"]
[Black "Cerveny, Martin"]
[Result "1-0"]
[ECO "A49"]
[WhiteElo "2252"]
[BlackElo "2347"]
[Annotator "NA"]
[PlyCount "161"]
[EventDate "2018.12.22"]
[EventType "swiss"]
[EventCountry "NED"]
[SourceTitle "playchess.com"]
[Source "ChessBase"]
[SourceQuality "1"]
[TimeControl "40/5400+30:1800+30"]

1. Nf3 {[%emt 0:00:00]} Nf6 {[%emt 0:00:00]} 2. g3 {[%emt 0:00:00]} g6 {[%emt 0:00:13]} 3. d4 {[%emt 0:00:22]} d6 {[%emt 0:00:18]} 4. Bg2 {[%emt 0:00:05]} Bg7 {[%emt 0:00:05]} 5. O-O {[%emt 0:00:06]} O-O {[%emt 0:00:04]} 6. b3 {[%emt 0:01:22]} a5 {[%emt 0:00:25]} 7. a4 {[%emt 0:03:02]} c5 {[%emt 0:01:57]} 8. Bb2 {[%emt 0:00:07]} Nc6 {[%emt 0:02:11]} 9. Nbd2 {[%emt 0:06:20]} Bf5 {[%emt 0:08:26]} 10. dxc5 {[%emt 0:22:20]} dxc5 {[%emt 0:00:07]} 11. Re1 {[%emt 0:01:02]} Ne4 {[%emt 0:13:18]} 12. Bxg7 Kxg7 {[%emt 0:00:13]} 13. Nxe4 {[%emt 0:04:06]} Bxe4 {[%emt 0:00:07]} 14. Nd2 {[%emt 0:03:17]} Bxg2 {[%emt 0:00:59]} 15. Kxg2 {[%emt 0:00:01]} Qc7 {[%emt 0:03:19]} 16. Nc4 {[%emt 0:03:33]} Rad8 {[%emt 0:00:32]} 17. Qc1 {[%emt 0:01:59]} f6 {[%emt 0:01:05]} 18. Rd1 {[%emt 0:05:45]} h5 {[%emt 0:03:05]} 19. c3 {[%emt 0:11:02]} Rxd1 {[%emt 0:00:43]} 20. Qxd1 {[%emt 0:00:01]} Rd8 {[%emt 0:00:13]} 21. Qc2 {[%emt 0:00:45]} Qd7 {[%emt 0:02:25]} 22. h4 {[%emt 0:05:00]} Qd5+ {[%emt 0:05:03]} 23. f3 {[%emt 0:01:17]} f5 {[%emt 0:06:28]} 24. Ra2 {[%emt 0:02:54]} Qe6 {[%emt 0:02:21]} 25. Qc1 {[%emt 0:01:33]} Rd5 {[%emt 0:07:33]} 26. Rd2 {[%emt 0:02:42]} Ne5 {[%emt 0:02:36]} 27. Rxd5 {[%emt 0:02:13]} Qxd5 {[%emt 0:00:05]} 28. Nxe5 {[%emt 0:00:55]} Qxe5 {[%emt 0:00:02]} 29. Kf2 {[%emt 0:00:23]} Qd5 {[%emt 0:04:26]} 30. Qe3 {[%emt 0:07:54]} Kf7 {[%emt 0:05:57]} 31. Qh6 {[%emt 0:03:21]} Qd6 {[%emt 0:00:52]} 32. Qh7+ {[%emt 0:01:03]} Ke8 {[%emt 0:00:11]} 33. Qg8+ {[%emt 0:01:08]} Kd7 {[%emt 0:00:06]} 34. Qc4 {[%emt 0:00:39]} b6 {[%emt 0:01:46]} 35. Qb5+ {[%emt 0:01:30]} Kc7 {[%emt 0:01:50]} 36. Qd3 {[%emt 0:01:38]} Qe6 {[%emt 0:00:49]} 37. Qe3 {[%emt 0:00:31]} Qd6 {[%emt 0:00:57]} 38. Qd3 {[%emt 0:00:10]} Qf6 {[%emt 0:00:05]} 39. Qe3 {[%emt 0:02:48]} e5 {[%emt 0:00:15]} 40. Qd2 {[%emt 0:03:43]} f4 {[%emt 0:00:08]} 41. Qd5 {[%emt 0:07:34]} fxg3+ {[%emt 0:03:20]} 42. Kxg3 {[%emt 0:00:03]} g5 {[%emt 0:00:14]} 43. Qa8 {[%emt 0:07:52]} gxh4+ {[%emt 0:05:33]} 44. Kh3 {[%emt 0:00:16]} Kd7 {[%emt 0:08:22]} 45. Qd5+ {[%emt 0:04:52]} Ke8 {[%emt 0:00:38]} 46. Qg8+ {[%emt 0:01:28]} Ke7 {[%emt 0:00:06]} 47. Qh7+ {[%emt 0:01:12]} Kd6 {[%emt 0:00:21]} 48. Qb7 {[%emt 0:04:57]} Qe6+ {[%emt 0:02:12]} 49. Kxh4 {[%emt 0:00:35]} Qxb3 {[%emt 0:00:05]} 50. Qb8+ {[%emt 0:00:36]} Kd7 {[%emt 0:00:08]} 51. Qb7+ {[%emt 0:00:22]} Kd8 {[%emt 0:04:31]} 52. Qb8+ {[%emt 0:00:17]} Ke7 {[%emt 0:00:09]} 53. Qxe5+ {[%emt 0:02:20]} Qe6 {[%emt 0:00:20]} 54. Qc7+ {[%emt 0:01:13]} Ke8 {[%emt 0:00:54]} 55. Qb8+ {[%emt 0:02:51]} Kf7 {[%emt 0:02:32]} 56. Kxh5 {[%emt 0:00:47]} Qd5+ {[%emt 0:08:02]} 57. Kg4 {[%emt 0:00:27]} Qd7+ {[%emt 0:00:07]} 58. Kg3 {[%emt 0:01:01]} Qxa4 {[%emt 0:00:31]} 59. Qc7+ {[%emt 0:01:00]} Ke8 {[%emt 0:03:43]} 60. Qxb6 {[%emt 0:00:36]} c4 {[%emt 0:02:53]} 61. e4 {[%emt 0:00:12]} Qa2 {[%emt 0:01:45]} 62. Qe6+ {[%emt 0:00:50]} Kd8 {[%emt 0:00:09]} 63. Qd6+ {[%emt 0:00:53]} Ke8 {[%emt 0:00:05]} 64. Qb8+ {[%emt 0:01:07]} Ke7 {[%emt 0:00:06]} 65. e5 {[%emt 0:00:27]} Qd2 {[%emt 0:00:54]} 66. Qc7+ {[%emt 0:00:36]} Ke6 {[%emt 0:01:19]} 67. Qxc4+ {[%emt 0:00:25]} Qd5 {[%emt 0:00:13]} 68. Qa6+ {[%emt 0:01:13]} Kxe5 {[%emt 0:00:14]} 69. c4 {[%emt 0:01:02]} Qc5 {[%emt 0:01:04]} 70. f4+ {[%emt 0:00:47]} Ke4 {[%emt 0:01:29]} 71. Qe6+ {[%emt 0:00:02]} Kd4 {[%emt 0:00:06]} 72. f5 {[%emt 0:00:16]} Qe5+ {[%emt 0:01:30]} 73. Kg4 {[%emt 0:00:40]} a4 {[%emt 0:00:08]} 74. Qd7+ {[%emt 0:00:35]} Ke4 {[%emt 0:01:07]} 75. Qc6+ {[%emt 0:00:01]} Ke3 {[%emt 0:00:25]} 76. Qf3+ {[%emt 0:00:05]} Kd4 {[%emt 0:00:11]} 77. f6 {[%emt 0:00:18]} Qe6+ {[%emt 0:02:41]} 78. Kg3 {[%emt 0:01:20]} a3 {[%emt 0:02:16]} 79. f7 {[%emt 0:00:32]} Kxc4 {[%emt 0:08:08]} 80. f8=Q {[%emt 0:00:21]} a2 {[%emt 0:02:18]} 81. Q8f4+ {[%emt 0:00:24] Kd5 [%clk 0:00:00]} 1-0

[Event "Groningen Festival 2018"]
[Site "Groningen"]
[Date "2018.12.26"]
[Round "5"]
[White "Simet, Martin"]
[Black "Grooten, Herman"]
[Result "0-1"]
[ECO "A48"]
[WhiteElo "2229"]
[BlackElo "2374"]
[Annotator "NA"]
[PlyCount "64"]
[EventDate "2018.12.22"]
[EventType "swiss"]
[EventCountry "NED"]
[SourceTitle "playchess.com"]
[Source "ChessBase"]
[SourceQuality "1"]
[TimeControl "40/5400+30:1800+30"]

1. d4 {[%emt 0:00:00]} Nf6 {[%emt 0:00:00]} 2. Bf4 {[%emt 0:00:00]} d6 {[%emt 0:00:49]} 3. e3 {[%emt 0:00:01]} Nbd7 {[%emt 0:00:13]} 4. Nf3 {[%emt 0:00:08]} g6 {[%emt 0:00:22]} 5. h3 {[%emt 0:00:15]} Bg7 {[%emt 0:00:08]} 6. c3 {[%emt 0:00:04]} O-O {[%emt 0:01:32]} 7. Be2 {[%emt 0:00:05]} Qe8 {[%emt 0:02:13]} 8. Bh2 {[%emt 0:00:46]} e5 {[%emt 0:00:28]} 9. O-O {[%emt 0:00:15]} Qe7 {[%emt 0:00:37]} 10. a4 {[%emt 0:03:35]} Re8 {[%emt 0:01:38]} 11. Re1 {[%emt 0:01:18]} e4 {[%emt 0:06:12]} 12. Nfd2 {[%emt 0:00:08]} h5 {[%emt 0:00:34]} 13. Bf1 {[%emt 0:03:48]} Nf8 {[%emt 0:00:23]} 14. c4 {[%emt 0:00:22]} Bf5 {[%emt 0:06:21]} 15. Qb3 {[%emt 0:01:25]} a5 {[%emt 0:10:08]} 16. Nc3 {[%emt 0:01:34]} c6 {[%emt 0:02:55]} 17. Qa3 {[%emt 0:00:43]} Rad8 {[%emt 0:03:32]} 18. Rab1 {[%emt 0:04:07]} g5 {[%emt 0:02:10]} 19. b4 {[%emt 0:00:36]} axb4 {[%emt 0:00:46]} 20. Rxb4 {[%emt 0:00:13]} Ng6 {[%emt 0:05:48]} 21. Reb1 {[%emt 0:05:16]} Bc8 {[%emt 0:00:40]} 22. a5 {[%emt 0:02:02]} g4 {[%emt 0:03:38]} 23. hxg4 {[%emt 0:00:25]} Nxg4 {[%emt 0:01:30]} 24. Be2 {[%emt 0:09:44]} Nxh2 {[%emt 0:03:09]} 25. Kxh2 {[%emt 0:00:05]} c5 {[%emt 0:02:19]} 26. Rb5 {[%emt 0:01:00]} cxd4 {[%emt 0:01:44]} 27. Ncxe4 {[%emt 0:04:49]} f5 {[%emt 0:07:49]} 28. Ng3 {[%emt 0:07:35]} Qh4+ {[%emt 0:05:40]} 29. Kg1 {[%emt 0:00:29]} dxe3 {[%emt 0:00:22]} 30. Ndf1 {[%emt 0:07:36]} exf2+ {[%emt 0:01:51]} 31. Kxf2 {[%emt 0:00:05]} f4 {[%emt 0:01:57]} 32. Rxh5 {[%emt 0:02:58]} fxg3+ {[%emt 0:01:23]} 0-1